{"text_format":"1","workbook":"xlsx","n_sheets":6,"sheets":["P. BDI 1","P. BDI 2","P. BDI 3","Princesa Izabel","QCI","CRON"],"not_rendered":{"charts":0,"images":0,"macros":1,"external_links":2,"defined_names":59,"comments":1,"pivot_tables":0},"unopened":[],"bounds":{"document_bytes":16777216,"sheet_cells":100000,"rows_first":2000,"rows_last":500,"rows_between":2000,"halvings":0,"cell_chars":16384,"cell_head_chars":4096},"cells_cut":0,"cells_raw":0,"read":"whole","date_system":"1900"}

{"sheet":"P. BDI 1","index":0,"n_rows":55,"n_cols":10,"rows_kept":55,"cut":false,"hidden":false,"merged":[[1,1,1,5],[2,2,2,5],[3,2,3,5],[4,2,4,5],[5,2,5,5],[11,3,11,5],[6,2,6,5],[7,2,7,5],[30,1,30,4],[32,1,32,5],[8,2,8,5],[34,1,34,5],[35,1,35,5],[14,3,14,5],[18,2,18,4],[25,1,25,4],[26,1,26,4],[27,1,27,4],[29,1,29,4]]}
[null,"IMPRIMIR EM PAPEL TIMBRADO DA EMPRESA PROPONENTE "]
[null,"BDI - Bonificações e Despesas Indiretas"]
[null,"Edital :","TP-29/2018"]
[null,"Tomador: ","Prefeitura Municipal de Dois Vizinhos - PR"]
[null,"Empreendimento: ","Revitalização Vias Urbanas"]
[null,"Local da Obra:","Dois Vizinhos-Pr"]
[null,"Empresa Prop.:","preencher"]
[null,"CNPJ:","preencher"]
[null,"Referencia:","preencher"]
[]
[null,"Identifique o tipo de obra:",1,{"$f":"IF(C11>0,IF(C11<7,,\"<--- Insira valor entre 1 e 6\"),\"<--- Insira valor entre 1 e 6\")","v":0}]
[null,"Construção de edifícios:",1,"Informe a base de cálculo do ISSQN."]
[null,"Construção de rodovias e ferrovias:",2,{"$f":"IF(D14<>0,0,\"( X )\")","v":0},"Sobre os serviços."]
[null,"Construção de redes de abastecimento de água, coleta de esgoto e construções correlatas:",3,"x","Sobre a mão-de-obra."]
[null,"Construção e manutenção de estações e redes de distribuição de energia elétrica:",4,"Informe a ocorrência da DESONERAÇÃO da folha de pagamento. Lei 12844/2013."]
[null,"Obras portuárias, marítimas e fluviais:",5,{"$f":"IF(D17<>0,0,\"( X )\")","v":0},"SEM Desoneração."]
[null,"Fornecimento de materiais e equipamentos:",6,"x","COM Desoneração."]
[]
[null,null,"Intervalo de admissibilidade",null,null,null,null,"Ac",{"$f":"F21","v":"preencher"}]
[null,"Item Componente do BDI","1º Quartil","Médio","3º Quartil","Valores Propostos",null,"S",{"$f":"F22","v":"preencher"}]
[null,"Administração Central",0.03,0.04,5.5E-2,"preencher",{"$f":"IF(F21=0,\"\",IF(F21<C21,\"Atenção, observar os intervalos!\",IF(F21>E21,\"Atenção, observar os intervalos!\",\"\")))","v":"Atenção, observar os intervalos!"},"G",{"$f":"I20","v":"preencher"}]
[null,"Seguro e Garantia",8.0000000000000002E-3,8.0000000000000002E-3,0.01,"preencher",{"$f":"IF(F22=0,\"\",IF(F22<C22,\"Atenção, observar os intervalos!\",IF(F22>E22,\"Atenção, observar os intervalos!\",\"\")))","v":"Atenção, observar os intervalos!"},"R",{"$f":"F23","v":"preencher"}]
[null,"Risco",9.7000000000000003E-3,1.2699999999999999E-2,1.2699999999999999E-2,"preencher",{"$f":"IF(F23=0,\"\",IF(F23<C23,\"Atenção, observar os intervalos!\",IF(F23>E23,\"Atenção, observar os intervalos!\",\"\")))","v":"Atenção, observar os intervalos!"},"DF","preencher"]
[null,"Despesas Financeiras",5.8999999999999999E-3,1.23E-2,1.3899999999999999E-2,"preencher",{"$f":"IF(F24=0,\"\",IF(F24<C24,\"Atenção, observar os intervalos!\",IF(F24>E24,\"Atenção, observar os intervalos!\",\"\")))","v":"Atenção, observar os intervalos!"},"L","preencher"]
[null,"Lucro",6.1600000000000002E-2,7.3999999999999996E-2,8.9599999999999999E-2,"preencher",{"$f":"IF(F25=0,\"\",IF(F25<C25,\"Atenção, observar os intervalos!\",IF(F25>E25,\"Atenção, observar os intervalos!\",\"\")))","v":"Atenção, observar os intervalos!"},"l1","preencher"]
[null,"I1: PIS e COFINS",null,null,null,"preencher",null,"l2","preencher"]
[null,"I2: ISSQN (conforme legislação municipal)",null,null,null,"preencher",null,"l3",4.4999999999999998E-2]
[null,"I3: Cont.Prev s/Rec.Bruta (Lei 12844/13 - Desoneração)",null,null,null,4.4999999999999998E-2]
[]
[null,"BDI - SEM Desoneração da folha de pagamento",null,null,null,{"$f":"ROUND((((1+I19+I21+I22)*(1+I23)*(1+I24))/(1-I25-I26))-1,4)","v":{"$error":"#VALUE!"}},null,"1º QUARTIL","MÉDIO","3º QUARTIL"]
[null,"BDI - COM Desoneração da folha de pagamento",null,null,null,{"$f":"ROUND((((1+I19+I21+I22)*(1+I23)*(1+I24))/(1-I25-I26-I27))-1,4)","v":{"$error":"#VALUE!"}},null,0.2034,0.22120000000000001,0.25]
[]
[null,"Declaramos que esta planilha foi elaborada conforme equação para cálculo do percentual do BDI recomendada pelo Acórdão 2622/2013 - TCU, representada pela fórmula abaixo."]
[]
[null,"BDI - SEM Desoneração = [(1+AC+S+G+R)X(1+DF)X(1+L)/(1-I1-I2)]-1"]
[null,"BDI - COM Desoneração = [(1+AC+S+G+R)X(1+DF)X(1+L)/(1-I1-I2-I3)]-1"]
[]
[]
[]
[]
[]
[]
[]
[null,"Responsável Técnico:","."]
[null,"Carimbo e Assinatura CREA/CAU:","."]
[]
[]
[]
[]
[]
[]
[]
[]
[null,"Responsavel Legal:","."]
[null,"Carimbo e Assinatura","cpf:"]

{"sheet":"P. BDI 2","index":1,"n_rows":52,"n_cols":10,"rows_kept":52,"cut":false,"hidden":false,"merged":[[6,2,6,5],[1,1,1,5],[2,2,2,5],[3,2,3,5],[4,2,4,5],[5,2,5,5],[35,1,35,5],[7,2,7,5],[11,3,11,5],[14,3,14,5],[18,2,18,4],[25,1,25,4],[26,1,26,4],[27,1,27,4],[29,1,29,4],[30,1,30,4],[32,1,32,5],[34,1,34,5],[8,2,8,5]]}
[null,"IMPRIMIR EM PAPEL TIMBRADO DA EMPRESA PROPONENTE "]
[null,"BDI - Bonificações e Despesas Indiretas"]
[null,"Edital :",{"$f":"'P. BDI 1'!C3:F3","v":"TP-29/2018"}]
[null,"Tomador: ","Prefeitura Municipal de Dois Vizinhos - PR"]
[null,"Empreendimento: ","ASFALTO"]
[null,"Local da Obra:",{"$f":"'P. BDI 1'!C6:F6","v":"Dois Vizinhos-Pr"}]
[null,"Empresa Prop.:",{"$f":"'P. BDI 1'!C7:F7","v":"preencher"}]
[null,"CNPJ:",{"$f":"'P. BDI 1'!C8:F8","v":"preencher"}]
[null,"Referencia:",{"$f":"'P. BDI 1'!C9:F9","v":"preencher"}]
[]
[null,"Identifique o tipo de obra:",2,{"$f":"IF(C11>0,IF(C11<7,,\"<--- Insira valor entre 1 e 6\"),\"<--- Insira valor entre 1 e 6\")","v":0}]
[null,"Construção de edifícios:",1,"Informe a base de cálculo do ISSQN."]
[null,"Construção de rodovias e ferrovias:",2,{"$f":"IF(D14<>0,0,\"( X )\")","v":0},"Sobre os serviços."]
[null,"Construção de redes de abastecimento de água, coleta de esgoto e construções correlatas:",3,"x","Sobre a mão-de-obra."]
[null,"Construção e manutenção de estações e redes de distribuição de energia elétrica:",4,"Informe a ocorrência da DESONERAÇÃO da folha de pagamento. Lei 12844/2013."]
[null,"Obras portuárias, marítimas e fluviais:",5,{"$f":"IF(D17<>0,0,\"( X )\")","v":0},"SEM Desoneração."]
[null,"Fornecimento de materiais e equipamentos:",6,"x","COM Desoneração."]
[]
[null,null,"Intervalo de admissibilidade",null,null,null,null,"Ac",{"$f":"F21","v":"preencher"}]
[null,"Item Componente do BDI","1º Quartil","Médio","3º Quartil","Valores Propostos",null,"S",{"$f":"F22","v":"preencher"}]
[null,"Administração Central",3.7999999999999999E-2,4.0099999999999997E-2,4.6699999999999998E-2,"preencher",{"$f":"IF(F21=0,\"\",IF(F21<C21,\"Atenção, observar os intervalos!\",IF(F21>E21,\"Atenção, observar os intervalos!\",\"\")))","v":"Atenção, observar os intervalos!"},"G",{"$f":"I20","v":"preencher"}]
[null,"Seguro e Garantia",3.2000000000000002E-3,4.0000000000000001E-3,7.4000000000000003E-3,"preencher",{"$f":"IF(F22=0,\"\",IF(F22<C22,\"Atenção, observar os intervalos!\",IF(F22>E22,\"Atenção, observar os intervalos!\",\"\")))","v":"Atenção, observar os intervalos!"},"R",{"$f":"F23","v":"preencher"}]
[null,"Risco",5.0000000000000001E-3,5.5999999999999999E-3,9.7000000000000003E-3,"preencher",{"$f":"IF(F23=0,\"\",IF(F23<C23,\"Atenção, observar os intervalos!\",IF(F23>E23,\"Atenção, observar os intervalos!\",\"\")))","v":"Atenção, observar os intervalos!"},"DF","preencher"]
[null,"Despesas Financeiras",1.0200000000000001E-2,1.11E-2,1.21E-2,"preencher",{"$f":"IF(F24=0,\"\",IF(F24<C24,\"Atenção, observar os intervalos!\",IF(F24>E24,\"Atenção, observar os intervalos!\",\"\")))","v":"Atenção, observar os intervalos!"},"L","preencher"]
[null,"Lucro",6.6400000000000001E-2,7.2999999999999995E-2,8.6900000000000005E-2,"preencher",{"$f":"IF(F25=0,\"\",IF(F25<C25,\"Atenção, observar os intervalos!\",IF(F25>E25,\"Atenção, observar os intervalos!\",\"\")))","v":"Atenção, observar os intervalos!"},"l1","preencher"]
[null,"I1: PIS e COFINS",null,null,null,"preencher",null,"l2","preencher"]
[null,"I2: ISSQN (conforme legislação municipal)",null,null,null,"preencher",null,"l3",4.4999999999999998E-2]
[null,"I3: Cont.Prev s/Rec.Bruta (Lei 12844/13 - Desoneração)",null,null,null,4.4999999999999998E-2]
[]
[null,"BDI - SEM Desoneração da folha de pagamento",null,null,null,{"$f":"ROUND((((1+I19+I21+I22)*(1+I23)*(1+I24))/(1-I25-I26))-1,4)","v":{"$error":"#VALUE!"}},null,"1º QUARTIL","MÉDIO","3º QUARTIL"]
[null,"BDI - COM Desoneração da folha de pagamento",null,null,null,{"$f":"ROUND((((1+I19+I21+I22)*(1+I23)*(1+I24))/(1-I25-I26-I27))-1,4)","v":{"$error":"#VALUE!"}},null,0.2034,0.22120000000000001,0.25]
[]
[null,"Declaramos que esta planilha foi elaborada conforme equação para cálculo do percentual do BDI recomendada pelo Acórdão 2622/2013 - TCU, representada pela fórmula abaixo."]
[]
[null,"BDI - SEM Desoneração = [(1+AC+S+G+R)X(1+DF)X(1+L)/(1-I1-I2)]-1"]
[null,"BDI - COM Desoneração = [(1+AC+S+G+R)X(1+DF)X(1+L)/(1-I1-I2-I3)]-1"]
[]
[]
[]
[]
[]
[]
[null,"Responsável Técnico:",{"$f":"'P. BDI 1'!C44","v":"."}]
[null,"Carimbo e Assinatura CREA/CAU:",{"$f":"'P. BDI 1'!C45","v":"."}]
[]
[]
[]
[]
[]
[]
[null,"Responsavel Legal:",{"$f":"'P. BDI 1'!C54","v":"."}]
[null,"Carimbo e Assinatura",{"$f":"'P. BDI 1'!C55","v":"cpf:"}]

{"sheet":"P. BDI 3","index":2,"n_rows":54,"n_cols":10,"rows_kept":54,"cut":false,"hidden":false,"merged":[[6,2,6,5],[1,1,1,5],[2,2,2,5],[3,2,3,5],[4,2,4,5],[5,2,5,5],[35,1,35,5],[7,2,7,5],[11,3,11,5],[14,3,14,5],[18,2,18,4],[25,1,25,4],[26,1,26,4],[27,1,27,4],[29,1,29,4],[30,1,30,4],[32,1,32,5],[34,1,34,5],[8,2,8,5]]}
[null,"IMPRIMIR EM PAPEL TIMBRADO DA EMPRESA PROPONENTE "]
[null,"BDI - Bonificações e Despesas Indiretas"]
[null,"Edital :",{"$f":"'P. BDI 1'!C3:F3","v":"TP-29/2018"}]
[null,"Tomador: ","Prefeitura Municipal de Dois Vizinhos - PR"]
[null,"Empreendimento: ","DRENAGEM PLUVIAL URBANA"]
[null,"Local da Obra:",{"$f":"'P. BDI 1'!C6:F6","v":"Dois Vizinhos-Pr"}]
[null,"Empresa Prop.:",{"$f":"'P. BDI 1'!C7","v":"preencher"}]
[null,"CNPJ:",{"$f":"'P. BDI 1'!C8","v":"preencher"}]
[null,"Referencia:",{"$f":"'P. BDI 1'!C9","v":"preencher"}]
[]
[null,"Identifique o tipo de obra:",3,{"$f":"IF(C11>0,IF(C11<7,,\"<--- Insira valor entre 1 e 6\"),\"<--- Insira valor entre 1 e 6\")","v":0}]
[null,"Construção de edifícios:",1,"Informe a base de cálculo do ISSQN."]
[null,"Construção de rodovias e ferrovias:",2,{"$f":"IF(D14<>0,0,\"( X )\")","v":0},"Sobre os serviços."]
[null,"Construção de redes de abastecimento de água, coleta de esgoto e construções correlatas:",3,"x","Sobre a mão-de-obra."]
[null,"Construção e manutenção de estações e redes de distribuição de energia elétrica:",4,"Informe a ocorrência da DESONERAÇÃO da folha de pagamento. Lei 12844/2013."]
[null,"Obras portuárias, marítimas e fluviais:",5,{"$f":"IF(D17<>0,0,\"( X )\")","v":0},"SEM Desoneração."]
[null,"Fornecimento de materiais e equipamentos:",6,"x","COM Desoneração."]
[]
[null,null,"Intervalo de admissibilidade",null,null,null,null,"Ac",{"$f":"F21","v":"preencher"}]
[null,"Item Componente do BDI","1º Quartil","Médio","3º Quartil","Valores Propostos",null,"S",{"$f":"F22","v":"preencher"}]
[null,"Administração Central",3.4299999999999997E-2,4.9299999999999997E-2,6.7100000000000007E-2,"preencher",{"$f":"IF(F21=0,\"\",IF(F21<C21,\"Atenção, observar os intervalos!\",IF(F21>E21,\"Atenção, observar os intervalos!\",\"\")))","v":"Atenção, observar os intervalos!"},"G",{"$f":"I20","v":"preencher"}]
[null,"Seguro e Garantia",2.8E-3,4.8999999999999998E-3,7.4999999999999997E-3,"preencher",{"$f":"IF(F22=0,\"\",IF(F22<C22,\"Atenção, observar os intervalos!\",IF(F22>E22,\"Atenção, observar os intervalos!\",\"\")))","v":"Atenção, observar os intervalos!"},"R",{"$f":"F23","v":"preencher"}]
[null,"Risco",0.01,1.3899999999999999E-2,1.7399999999999999E-2,"preencher",{"$f":"IF(F23=0,\"\",IF(F23<C23,\"Atenção, observar os intervalos!\",IF(F23>E23,\"Atenção, observar os intervalos!\",\"\")))","v":"Atenção, observar os intervalos!"},"DF","preencher"]
[null,"Despesas Financeiras",9.4000000000000004E-3,9.9000000000000008E-3,1.17E-2,"preencher",{"$f":"IF(F24=0,\"\",IF(F24<C24,\"Atenção, observar os intervalos!\",IF(F24>E24,\"Atenção, observar os intervalos!\",\"\")))","v":"Atenção, observar os intervalos!"},"L","preencher"]
[null,"Lucro",6.7400000000000002E-2,8.0399999999999999E-2,9.4E-2,"preencher",{"$f":"IF(F25=0,\"\",IF(F25<C25,\"Atenção, observar os intervalos!\",IF(F25>E25,\"Atenção, observar os intervalos!\",\"\")))","v":"Atenção, observar os intervalos!"},"l1","preencher"]
[null,"I1: PIS e COFINS",null,null,null,"preencher",null,"l2","preencher"]
[null,"I2: ISSQN (conforme legislação municipal)",null,null,null,"preencher",null,"l3",4.4999999999999998E-2]
[null,"I3: Cont.Prev s/Rec.Bruta (Lei 12844/13 - Desoneração)",null,null,null,4.4999999999999998E-2]
[]
[null,"BDI - SEM Desoneração da folha de pagamento",null,null,null,{"$f":"ROUND((((1+I19+I21+I22)*(1+I23)*(1+I24))/(1-I25-I26))-1,4)","v":{"$error":"#VALUE!"}},null,"1º QUARTIL","MÉDIO","3º QUARTIL"]
[null,"BDI - COM Desoneração da folha de pagamento",null,null,null,{"$f":"ROUND((((1+I19+I21+I22)*(1+I23)*(1+I24))/(1-I25-I26-I27))-1,4)","v":{"$error":"#VALUE!"}},null,0.2034,0.22120000000000001,0.25]
[]
[null,"Declaramos que esta planilha foi elaborada conforme equação para cálculo do percentual do BDI recomendada pelo Acórdão 2622/2013 - TCU, representada pela fórmula abaixo."]
[]
[null,"BDI - SEM Desoneração = [(1+AC+S+G+R)X(1+DF)X(1+L)/(1-I1-I2)]-1"]
[null,"BDI - COM Desoneração = [(1+AC+S+G+R)X(1+DF)X(1+L)/(1-I1-I2-I3)]-1"]
[]
[]
[]
[]
[]
[]
[null,"Responsável Técnico:",{"$f":"'P. BDI 1'!C44","v":"."}]
[null,"Carimbo e Assinatura CREA/CAU:",{"$f":"'P. BDI 1'!C45","v":"."}]
[]
[]
[]
[]
[]
[]
[]
[]
[null,"Responsavel Legal:",{"$f":"'P. BDI 1'!C54","v":"."}]
[null,"Carimbo e Assinatura",{"$f":"'P. BDI 1'!C55","v":"cpf:"}]

{"sheet":"Princesa Izabel","index":3,"n_rows":77,"n_cols":10,"rows_kept":77,"cut":false,"hidden":false,"merged":[[1,0,2,7],[4,0,4,1],[4,3,4,4],[4,5,4,6],[5,0,5,1],[5,3,5,4],[5,5,5,6],[11,0,11,1],[46,0,46,6],[47,0,47,6],[48,0,48,6],[6,0,6,1],[7,0,7,1],[8,0,8,1],[8,4,8,7],[9,0,9,1],[10,0,10,1],[10,4,10,5]]}
["IMPRIMIR EM PAPEL TIMBRADO DA EMPRESA PROPONENTE "]
["PLANILHA ORÇAMENTARIA"]
[]
[]
[{"$f":"'P. BDI 1'!B3","v":"Edital :"},null,{"$f":"'P. BDI 1'!C3:F3","v":"TP-29/2018"},"Área:",null,{"$f":"F28","v":274.3},null,"m²"]
[{"$f":"'P. BDI 1'!B4","v":"Tomador: "},null,{"$f":"'P. BDI 1'!C4:F4","v":"Prefeitura Municipal de Dois Vizinhos - PR"},"Custo R$/m2",null,{"$f":"H49/F5","v":{"$error":"#VALUE!"}}]
[{"$f":"'P. BDI 1'!B5","v":"Empreendimento: "},null,{"$f":"'P. BDI 1'!C5:F5","v":"Revitalização Vias Urbanas"}]
[{"$f":"'P. BDI 1'!B6","v":"Local da Obra:"},null,{"$f":"C16","v":"RUA PRINCESA IZABEL"}]
[{"$f":"'P. BDI 1'!B7","v":"Empresa Prop.:"},null,{"$f":"'P. BDI 1'!C7:F7","v":"preencher"}]
[{"$f":"'P. BDI 1'!B8","v":"CNPJ:"},null,{"$f":"'P. BDI 1'!C8:F8","v":"preencher"}]
[{"$f":"'P. BDI 1'!B9","v":"Referencia:"},null,{"$f":"'P. BDI 1'!C9:F9","v":"preencher"},null,"LOTE 2"]
["BDI"]
[]
["ITEM .","REF.","DESCRIÇÃO","UN","VALOR UNIT.","QUANT.","VALOR UNIT C/ BDI","TOTAL"]
[]
[null,null,"RUA PRINCESA IZABEL"]
[]
[1,null,"SERVIÇOS PRELIMINARES","BDI",{"$f":"E22","v":{"$error":"#VALUE!"}},null,"TOTAL DO GRUPO:",{"$f":"SUM(H19:H21)","v":{"$error":"#VALUE!"}}]
[]
["1.1","74209/001","PLACA DE OBRA (PARA CONSTRUCAO CIVIL) EM CHAPA GALVANIZADA *N. 22*, DE *2,0 X 1,125* M","M2",null,2.25,{"$f":"ROUND((E20*$E$18)+E20,2)","v":{"$error":"#VALUE!"}},{"$f":"ROUND(G20*F20,2)","v":{"$error":"#VALUE!"}},null,{"$f":"ROUND(E20*F20,2)","v":0}]
[]
[2,null,"PAVIMENTAÇÃO","BDI",{"$f":"'P. BDI 2'!F31","v":{"$error":"#VALUE!"}},null,"TOTAL DO GRUPO:",{"$f":"SUM(H23:H32)","v":{"$error":"#VALUE!"}}]
[null,null,null,null,null,null,null,null,null,{"$f":"E23*F23","v":0}]
["2.1",90100,"ESCAVAÇÃO MECANIZADA COM RETROESCAVADEIRA","M3",null,{"$f":"F27+F26","v":109.72999999999999},{"$f":"ROUND((E24*$E$22)+E24,2)","v":{"$error":"#VALUE!"}},{"$f":"ROUND(G24*F24,2)","v":{"$error":"#VALUE!"}},null,{"$f":"ROUND(E24*F24,2)","v":0}]
["2.2",72961,"REGULARIZACAO E COMPACTACAO DE SUBLEITO","M2",null,{"$f":"F28","v":274.3},{"$error":"#VALUE!"},{"$error":"#VALUE!"},null,0]
["2.3",96400,"EXECUÇÃO E COMPACTAÇÃO DE BASE E OU SUB BASE COM MACADAME SECO/RACHAO","M3",null,{"$f":"ROUND(F28*0.25,2)","v":68.58},{"$error":"#VALUE!"},{"$error":"#VALUE!"},null,0]
["2.4",96396,"EXECUÇÃO E COMPACTAÇÃO DE BASE E OU SUB BASE COM BRITA GRADUADA SIMPLES","M3",null,{"$f":"ROUND(F28*0.15,2)","v":41.15},{"$error":"#VALUE!"},{"$error":"#VALUE!"},null,0]
["2.5",96401,"EXECUÇÃO DE IMPRIMAÇÃO COM ASFALTO DILUÍDO CM-30. AF_09/2017","M2",null,274.3,{"$error":"#VALUE!"},{"$error":"#VALUE!"},null,0]
["2.6",95997,"CONSTRUÇÃO DE PAVIMENTO COM APLICAÇÃO DE CONCRETO BETUMINOSO USINADO A QUENTE (CBUQ), CAMADA DE ROLAMENTO, COM ESPESSURA DE 6,0 CM","M3",null,{"$f":"ROUND(F28*0.06,2)","v":16.46},{"$error":"#VALUE!"},{"$f":"ROUND(G29*F29,2)","v":{"$error":"#VALUE!"}},null,0]
["2.7",95875,"TRANSPORTE COM CAMINHÃO BASCULANTE DE 10 M3, EM VIA URBANA PAVIMENTADA","M3XKM",null,{"$f":"(F24+F29)*8","v":1009.52},{"$error":"#VALUE!"},{"$f":"ROUND(G30*F30,2)","v":{"$error":"#VALUE!"}},null,0]
["2.8",72947,"SINALIZACAO HORIZONTAL COM TINTA RETRORREFLETIVA A BASE DE RESINA ACRILICA COM MICROESFERAS DE VIDRO","M2",null,{"$f":"(1.6*20)+2.5+60","v":94.5},{"$error":"#VALUE!"},{"$f":"ROUND(G31*F31,2)","v":{"$error":"#VALUE!"}},null,0]
[null,null,null,null,null,null,null,null,null,0]
[3,null,"DRENAGEM PLUVIAL","BDI",{"$f":"'P. BDI 3'!F31","v":{"$error":"#VALUE!"}},null,"TOTAL DO GRUPO:",{"$f":"SUM(H34:H38)","v":{"$error":"#VALUE!"}},null,{"$error":"#VALUE!"}]
[null,null,null,null,null,null,null,null,null,0]
["3.1","2 S 04 960 02 DNIT 11/2016","BOCA DE LOBO","UN",null,1,{"$f":"ROUND((E35*$E$33)+E35,2)","v":{"$error":"#VALUE!"}},{"$f":"ROUND(G35*F35,2)","v":{"$error":"#VALUE!"}},null,0]
["3.2",92221,"TUBO DE CONCRETO PARA REDES COLETORAS DE ÁGUAS PLUVIAIS, DIÂMETRO DE 600 MM, JUNTA RÍGIDA FORNECIMENTO E ASSENTAMENTO.","M",null,2,{"$f":"ROUND((E36*$E$33)+E36,2)","v":{"$error":"#VALUE!"}},{"$error":"#VALUE!"},null,0]
["3.3",94265,"GUIA (MEIO-FIO) CONCRETO, MOLDADA IN LOCO EM TRECHO RETO COM EXTRUSORA, 14 CM BASE X 30 CM ALTURA. AF_06/2016","M",null,84,{"$error":"#VALUE!"},{"$error":"#VALUE!"},null,0]
[null,null,null,null,null,null,null,null,null,0]
[4,null,"RAMPAS ACESSIVEIS","BDI",{"$f":"'P. BDI 1'!F31","v":{"$error":"#VALUE!"}},null,"TOTAL DO GRUPO:",{"$f":"SUM(H40:H45)","v":{"$error":"#VALUE!"}},null,{"$error":"#VALUE!"}]
[null,null,null,null,null,null,null,null,null,0]
["4.1",96995,"REGULARIZACAO E COMPACTACAO MANUAL DE TERRENO COM SOQUETE","M3",null,{"$f":"F45*0.05","v":0.18000000000000002},{"$f":"ROUND((E41*$E$39)+E41,2)","v":{"$error":"#VALUE!"}},{"$f":"ROUND(G41*F41,2)","v":{"$error":"#VALUE!"}},null,{"$f":"ROUND(F41*E41,2)","v":0}]
["4.2",4721,"LASTRO DE PEDRA BRITADA N. 1 (9,5 a 19 MM)  ESPESSURA 5 CM ","M3",null,{"$f":"F45*0.05","v":0.18000000000000002},{"$f":"ROUND((E42*$E$39)+E42,2)","v":{"$error":"#VALUE!"}},{"$f":"ROUND(G42*F42,2)","v":{"$error":"#VALUE!"}},null,{"$f":"ROUND(F42*E42,2)","v":0}]
["4.3","93679 alterado","EXECUÇÃO DE PAVIMENTO EM PISO INTERTRAVADO, GUIA TATIL OU  ALERTA, COLORIDO, INCL TRAVAMENTO COM AREIA, INCLUSO COLCHAO DE PÓ DE PEDRA 5 CM E COMPACTACAO COM PLACA VIBRATORIA, COM BLOCO DE 20 X 20 CM, ESPESSURA 6 CM.      ","M2",null,{"$f":"0.55*2","v":1.1000000000000001},{"$f":"ROUND((E43*$E$39)+E43,2)","v":{"$error":"#VALUE!"}},{"$f":"ROUND(G43*F43,2)","v":{"$error":"#VALUE!"}},null,{"$f":"ROUND(F43*E43,2)","v":0}]
["4.4",96536,"FORMA TABUA P/ CONCRETO  C/ REAPROVEITAMENTO INCLUSIVE GRAVATEAMENTO","M2",null,0.87,{"$f":"ROUND((E44*$E$39)+E44,2)","v":{"$error":"#VALUE!"}},{"$f":"ROUND(G44*F44,2)","v":{"$error":"#VALUE!"}},null,{"$f":"ROUND(F44*E44,2)","v":0}]
["4.5",68325,"PISO EM CONCRETO 20 MPA PREPARO MECANICO, ESPESSURA 7CM, DESEMPENADO","M2",null,{"$f":"1.8*2","v":3.6},{"$f":"ROUND((E45*$E$39)+E45,2)","v":{"$error":"#VALUE!"}},{"$f":"ROUND(G45*F45,2)","v":{"$error":"#VALUE!"}},null,{"$f":"ROUND(F45*E45,2)","v":0}]
[null,null,null,null,null,null,null,null,null,0]
["VALOR TOTAL DA OBRA :",null,null,null,null,null,null,{"$f":"SUM(J17:J46)","v":{"$error":"#VALUE!"}}]
["BDI :",null,null,null,null,null,null,{"$f":"H49-H47","v":{"$error":"#VALUE!"}}]
["VALOR TOTAL DA OBRA COM BDI:",null,null,null,null,null,null,{"$f":"H22+H33+H18+H39","v":{"$error":"#VALUE!"}}]
[]
[]
[]
[null,null,null,null,null,null,null,null,null,{"$f":"(E33+E22)/2","v":{"$error":"#VALUE!"}}]
[]
[null,null,null,null,null,null,null,null,null,{"$f":"H47*(1+J53)","v":{"$error":"#VALUE!"}}]
[]
[]
[]
[]
[]
[]
[]
[]
[null,null,null,"Responsável Técnico:",{"$f":"'P. BDI 1'!C44","v":"."}]
[null,null,null,"Carimbo e Assinatura CREA/CAU:",{"$f":"'P. BDI 1'!C45","v":"."}]
[]
[]
[]
[]
[]
[]
[]
[]
[]
[]
[null,null,null,"Responsavel Legal:",{"$f":"'P. BDI 1'!C54","v":"."}]
[null,null,null,"Carimbo e Assinatura",{"$f":"'P. BDI 1'!C55","v":"cpf:"}]

{"sheet":"QCI","index":4,"n_rows":59,"n_cols":8,"rows_kept":59,"cut":false,"hidden":true,"merged":[[12,0,12,1],[13,0,13,1],[14,0,14,1],[24,5,24,6],[24,3,24,4],[12,4,12,5],[9,5,9,6],[9,3,9,4],[11,0,11,1],[9,0,9,1],[10,0,10,1],[1,0,2,7],[7,0,7,1],[7,3,7,4],[7,5,7,6],[8,0,8,1],[8,5,8,6],[8,3,8,4],[32,1,32,6],[33,1,33,6],[31,1,31,6],[28,5,28,6],[29,3,29,4],[28,3,28,4],[30,5,30,6],[30,3,30,4],[29,5,29,6],[27,3,27,4],[27,5,27,6],[25,5,25,6],[25,3,25,4],[26,3,26,4],[26,5,26,6]]}
["IMPRIMIR EM PAPEL TIMBRADO DA EMPRESA PROPONENTE "]
["QUADRO DE COMPOSIÇÃO DE INVESTIMENTO "]
[]
[]
[]
[]
[]
[{"$f":"'P. BDI 1'!B3","v":"Edital :"},null,{"$f":"'P. BDI 1'!C3:F3","v":"TP-29/2018"},"Area Total (m2):",null,{"$f":"'Princesa Izabel'!F28","v":274.3}]
[{"$f":"'P. BDI 1'!B4","v":"Tomador: "},null,{"$f":"'P. BDI 1'!C4:F4","v":"Prefeitura Municipal de Dois Vizinhos - PR"},"Valor Tot. c/ BDI:",null,{"$f":"H34","v":{"$error":"#VALUE!"}}]
[{"$f":"'P. BDI 1'!B5","v":"Empreendimento: "},null,{"$f":"'P. BDI 1'!C5:F5","v":"Revitalização Vias Urbanas"},"Custo R$/m2",null,{"$f":"F9/F8","v":{"$error":"#VALUE!"}}]
[{"$f":"'P. BDI 1'!B6","v":"Local da Obra:"},null,{"$f":"'Princesa Izabel'!C8","v":"RUA PRINCESA IZABEL"}]
[{"$f":"'P. BDI 1'!B7","v":"Empresa Prop.:"},null,{"$f":"'P. BDI 1'!C7:F7","v":"preencher"}]
[{"$f":"'P. BDI 1'!B8","v":"CNPJ:"},null,{"$f":"'P. BDI 1'!C8:F8","v":"preencher"},null,"LOTE 2"]
[{"$f":"'P. BDI 1'!B9","v":"Referencia:"},null,{"$f":"'P. BDI 1'!C9:F9","v":"preencher"}]
[]
[]
[]
[]
[]
[]
[]
[]
[]
[]
[null,"LOTE","DESCRIÇÃO ","% DO GRUPO",null,"VALOR DO GRUPO:",null,"TOTAL ACUM."]
[]
[null,2,{"$f":"'Princesa Izabel'!C16","v":"RUA PRINCESA IZABEL"},{"$f":"F27/$H$34","v":{"$error":"#VALUE!"}},null,{"$f":"'Princesa Izabel'!H49","v":{"$error":"#VALUE!"}},null,{"$f":"H26+F27","v":{"$error":"#VALUE!"}}]
[]
[]
[]
[]
[null,"VALOR TOTAL DA OBRA :",null,null,null,null,null,{"$f":"'Princesa Izabel'!H47","v":{"$error":"#VALUE!"}}]
[null,"BDI :",null,null,null,null,null,{"$f":"'Princesa Izabel'!H48","v":{"$error":"#VALUE!"}}]
[null,"VALOR TOTAL DA OBRA COM BDI:",null,null,null,null,null,{"$f":"SUM(F26:G31)","v":{"$error":"#VALUE!"}}]
[]
[]
[]
[]
[]
[]
[]
[]
[]
[]
[]
[null,null,null,"Responsável Técnico:",{"$f":"'P. BDI 1'!C44","v":"."}]
[null,null,null,"Carimbo e Assinatura CREA/CAU:",{"$f":"'P. BDI 1'!C45","v":"."}]
[]
[]
[]
[]
[]
[]
[]
[]
[]
[]
[null,null,null,"Responsavel Legal:",{"$f":"'P. BDI 1'!C54","v":"."}]
[null,null,null,"Carimbo e Assinatura",{"$f":"'P. BDI 1'!C55","v":"cpf:"}]

{"sheet":"CRON","index":5,"n_rows":47,"n_cols":11,"rows_kept":47,"cut":false,"hidden":false,"merged":[[21,1,21,3],[21,4,21,5],[1,0,2,10],[10,0,10,1],[11,0,11,1],[7,0,7,1],[5,5,5,6],[9,0,9,1],[4,0,4,1],[4,3,4,4],[4,5,4,6],[5,0,5,1],[5,3,5,4],[6,0,6,1],[6,3,6,4],[6,5,6,6],[8,0,8,1],[14,2,14,3],[14,4,14,5],[16,4,16,5],[15,4,15,5],[15,2,15,3],[9,5,9,6],[18,4,18,5],[19,4,19,5],[20,4,20,5],[17,4,17,5],[16,2,16,3],[18,2,18,3],[19,2,19,3],[20,2,20,3]]}
["IMPRIMIR EM PAPEL TIMBRADO DA EMPRESA PROPONENTE "]
["CRONOGRAMA FÍSICO-FINANCEIRO "]
[]
[]
[{"$f":"'P. BDI 1'!B3","v":"Edital :"},null,{"$f":"'P. BDI 1'!C3:F3","v":"TP-29/2018"},"Area:",null,{"$f":"QCI!F8","v":274.3}]
[{"$f":"'P. BDI 1'!B4","v":"Tomador: "},null,{"$f":"'P. BDI 1'!C4:F4","v":"Prefeitura Municipal de Dois Vizinhos - PR"},"Valor Tot. c/ BDI:",null,{"$f":"K22","v":{"$error":"#VALUE!"}}]
[{"$f":"'P. BDI 1'!B5","v":"Empreendimento: "},null,{"$f":"'P. BDI 1'!C5:F5","v":"Revitalização Vias Urbanas"},"Custo R$/m2",null,{"$f":"F6/F5","v":{"$error":"#VALUE!"}}]
[{"$f":"'P. BDI 1'!B6","v":"Local da Obra:"},null,{"$f":"'Princesa Izabel'!C8","v":"RUA PRINCESA IZABEL"}]
[{"$f":"'P. BDI 1'!B7","v":"Empresa Prop.:"},null,{"$f":"'P. BDI 1'!C7:F7","v":"preencher"}]
[{"$f":"'P. BDI 1'!B8","v":"CNPJ:"},null,{"$f":"'P. BDI 1'!C8:F8","v":"preencher"},null,null,"LOTE 2"]
[{"$f":"'P. BDI 1'!B9","v":"Referencia:"},null,{"$f":"'P. BDI 1'!C9:F9","v":"preencher"}]
[]
[]
[]
[null,"LOTE","DESCRIÇÃO ",null,"VALOR DO GRUPO",null,"MÊS °1","MÊS °2","MÊS °3","MÊS °4","% TOTAL"]
[]
[null,{"$f":"QCI!B27","v":2},{"$f":"QCI!C27","v":"RUA PRINCESA IZABEL"},null,{"$f":"QCI!F27","v":{"$error":"#VALUE!"}},null,0.9,0.1,null,null,{"$f":"SUM(G17:J17)","v":1}]
[]
[]
[]
[]
[null,"TOTAL:",null,null,null,null,{"$f":"G17*E17+G16*E16+G19*E19+G20*E20+G21*E21","v":{"$error":"#VALUE!"}},{"$f":"H17*E17+H16*E16+H19*E19+H20*E20+H21*E21","v":{"$error":"#VALUE!"}},{"$f":"I17*E17+I16*E16+I19*E19+I20*E20+I21*E21","v":{"$error":"#VALUE!"}},{"$f":"E16*J16","v":0},{"$f":"SUM(G22:J22)","v":{"$error":"#VALUE!"}}]
[]
[]
[]
[]
[]
[]
[]
[]
[]
[]
[null,null,null,null,null,"Responsável Técnico:",{"$f":"'P. BDI 1'!C44","v":"."}]
[null,null,null,null,null,"Carimbo e Assinatura CREA/CAU:",{"$f":"'P. BDI 1'!C45","v":"."}]
[]
[]
[]
[]
[]
[]
[]
[]
[]
[]
[]
[null,null,null,null,null,"Responsavel Legal:",{"$f":"'P. BDI 1'!C54","v":"."}]
[null,null,null,null,null,"Carimbo e Assinatura",{"$f":"'P. BDI 1'!C55","v":"cpf:"}]